{"text_format":"3","workbook":"xlsx","n_sheets":1,"sheets":["тестовый"],"not_rendered":{"external_links":3},"read":"whole","date_system":"1900"}

{"sheet":"тестовый","index":0,"n_rows":14,"n_cols":17,"rows_kept":14,"merged":[[0,0,0,16]]}
["Протокол по итогам муниципального этапа ВсОШ по предмету \"Информатика\"  Менделеевского муниципального района в 2019-2020 учебном году "]
["№ п/п","Муниципалитет","Полное наименование образовательного учреждения (по уставу)","Фамилия","Имя","Отчество","Класс","Дата рождения","Пол","Балл","Апеляционный балл","Итоговый балл","Максимальный балл","Статус","Фамилия, имя, отчество педагога, подготовившего участника олимпиады","Полное наименование образовательного учреждения (по уставу)","Предмет"]
[1,{"$f":"[1]Лист1!B9","v":"Менделеевский"},{"$f":"[2]Лист1!C5","v":"МБОУ \"СОШ №1\""},{"$f":"[2]Лист1!D5","v":"Низамутдинов"},{"$f":"[2]Лист1!E5","v":"Дамир"},null,{"$f":"[2]Лист1!G5","v":10},null,"м",170,null,{"$f":"J3","v":170},500,null,{"$f":"[2]Лист1!O5","v":"Пашкова О. В."},{"$f":"[2]Лист1!P5","v":"МБОУ \"СОШ №1\""},"информатика"]
[2,{"$f":"[1]Лист1!B10","v":"Менделеевский"},"МБОУ \"СОШ №3\"",{"$f":"[3]Лист1!D4","v":"Чермаков"},{"$f":"[3]Лист1!E4","v":"Денис"},null,{"$f":"[3]Лист1!G4","v":10},null,{"$f":"[3]Лист1!I4","v":"м"},0,null,0,500,null,"Пузырев С. В.","МБОУ \"СОШ №1\"","информатика"]
[3,"Менделеевский",{"$f":"[2]Лист1!C7","v":"МБОУ \"СОШ №1\""},{"$f":"[2]Лист1!D7","v":"Зиннатуллин"},{"$f":"[2]Лист1!E7","v":"Рамиль"},null,{"$f":"[2]Лист1!G7","v":11},null,"м",80,null,80,500,null,{"$f":"[2]Лист1!O7","v":"Пузырев С. В."},{"$f":"[2]Лист1!P7","v":"МБОУ \"СОШ №1\""},"информатика"]
[4,"Менделеевский","МБОУ \"СОШ №1\"","Зиятдинов ","Марсель ",null,11,null,{"$f":"I4","v":"м"},0,null,0,500,null,"Пузырев С. В.","МБОУ \"СОШ №1\"","информатика"]
[]
["Члены жюри: "]
[]
[null,null,"/Пашкова О.В./"]
[]
[null,null,"/Кочергин А.А./"]
[]
[null,null,"/Пузырев С.В./"]